bitfinex/quotes_SOLUSD_20250829
["timestamp","ask_amount","ask_price","bid_price","bid_amount"]
[1756493495197,0.72,202.58,202.52,0.03]
[1756493495401,6.1448087,202.56,202.52,0.03]
[1756493495598,6.1448087,202.59,202.56,4.93680884]
[1756493495888,6.1448087,202.58,202.56,4.93680884]
[1756493497301,6.1448087,202.58,202.55,4.93702861]
[1756493497481,9.84357722,202.58,202.54,4.96729633]
[1756493497684,9.84357722,202.58,202.55,0.69]
[1756493498205,40.62,202.62,202.55,0.69]
[1756493498371,9.84357722,202.6,202.55,0.69]
[1756493498570,9.84357722,202.59,202.55,0.69]
[1756493499484,40.62,202.62,202.55,0.69]
[1756493499693,9.84357722,202.6,202.56,4.93680884]
[1756493499995,49.74357722,202.62,202.57,0.69]
[1756493500380,9.84357722,202.59,202.56,4.93680884]
[1756493500574,9.84357722,202.58,202.56,4.93680884]
[1756493500968,9.84357722,202.6,202.56,4.93680884]
[1756493501676,9.84357722,202.6,202.54,0.03]
[1756493501677,0.72,202.59,202.54,0.03]
[1756493501998,9.84357722,202.56,202.54,0.03]
[1756493502978,9.84357722,202.57,202.54,0.03]
[1756493503204,9.84357722,202.58,202.54,0.03]
[1756493503399,9.84357722,202.57,202.54,0.03]
[1756493504588,9.84357722,202.56,202.54,0.03]
[1756493504895,0.72,202.59,202.54,0.03]
[1756493505076,9.84357722,202.57,202.54,0.03]
[1756493505285,9.84357722,202.56,202.54,0.03]
[1756493505781,0.72,202.59,202.54,0.03]
[1756493506096,9.84357722,202.56,202.54,0.03]
[1756493506496,9.84357722,202.58,202.54,0.03]
[1756493506695,9.84357722,202.6,202.55,10.53357722]
[1756493506898,9.84357722,202.6,202.55,9.84357722]
[1756493507101,10.56357722,202.6,202.55,9.84357722]
[1756493507397,10.56357722,202.6,202.54,89.47357722]
[1756493507582,9.84357722,202.6,202.54,90.16357722]
[1756493507782,9.84357722,202.59,202.55,4.93705257]
[1756493508094,0.72,202.62,202.55,4.93705257]
[1756493508405,9.84357722,202.6,202.55,15.47062979]
[1756493508905,9.84357722,202.6,202.55,5.62705257]
[1756493509071,10.56357722,202.6,202.55,17.96968401]
[1756493511416,44.81467379,202.65,202.56,10.53357722]
[1756493511417,39.88,202.65,202.56,10.53357722]
[1756493511625,9.84357722,202.6,202.56,0.69]
[1756493511783,9.84357722,202.6,202.56,13.59559401]
[1756493511977,9.84357722,202.59,202.54,89.47357722]
[1756493512282,9.84357722,202.57,202.54,79.63]
[1756493512497,10.56357722,202.57,202.54,79.63]
[1756493512807,9.84357722,202.56,202.54,79.63]
[1756493513002,0.72,202.57,202.54,0.03]
[1756493513192,10.56357722,202.57,202.54,0.03]
[1756493513500,9.84357722,202.59,202.55,0.69]
[1756493514104,10.56357722,202.6,202.55,0.69]
[1756493515379,10.56357722,202.6,202.56,4.93680884]
[1756493515784,10.56357722,202.59,202.56,4.93680884]
[1756493516483,39.76,202.63,202.54,0.03]
[1756493516484,17.27371433,202.62,202.54,0.03]
[1756493516677,9.84357722,202.55,202.54,0.03]
[1756493516883,50.00357722,202.55,202.54,0.03]
[1756493517083,50.62357722,202.55,202.54,0.03]
[1756493517500,55.56062979,202.55,202.54,0.03]
[1756493518192,45.71705257,202.55,202.54,0.03]
[1756493518720,55.56062979,202.55,202.54,0.03]
[1756493519010,55.56062979,202.55,202.52,0.03]
[1756493519011,59.22430777,202.55,202.52,0.03]
[1756493519207,3.66367798,202.54,202.52,0.03]
[1756493519392,9.82208705,202.53,202.52,0.03]
[1756493520310,16.60049612,202.53,202.47,0.03]
[1756493520612,12.31681814,202.5,202.47,0.03]
[1756493520785,6.15840907,202.48,202.47,0.03]
[1756493520985,9.82208705,202.48,202.47,0.03]
[1756493521185,9.82208694,202.48,202.47,0.03]
[1756493522185,3.66367787,202.48,202.47,0.03]
[1756493522385,3.66367787,202.48,202.47,0.73]
[1756493523205,3.66367787,202.48,202.47,5.6690033]
[1756493523397,9.82208694,202.48,202.47,5.6690033]
[1756493523993,3.66367787,202.48,202.47,5.6690033]
[1756493524189,6.15840907,202.51,202.47,18.01651157]
[1756493524402,6.15840907,202.52,202.48,0.7]
[1756493524715,9.81389388,202.51,202.48,0.7]
[1756493524887,6.15840907,202.51,202.49,0.7]
[1756493525091,6.15840907,202.52,202.5,0.7]
[1756493525406,3.653347,202.51,202.5,5.6382716]
[1756493525587,9.81175607,202.51,202.5,4.9382716]
[1756493526708,9.81175607,202.51,202.49,4.93851548]
[1756493526896,6.15840907,202.51,202.49,5.63851548]
[1756493527099,6.15840907,202.51,202.5,0.7]
[1756493527298,3.65089249,202.51,202.5,0.7]
[1756493527701,0.06,202.52,202.5,6.85840907]
[1756493527907,0.06,202.52,202.51,6.85840907]
[1756493528694,0.06,202.52,202.51,25.39203083]
[1756493532528,1e-08,202.54,202.51,105.4858336]
[1756493532823,6.15840907,202.63,202.55,13.59559401]
[1756493532998,3.65668611,202.62,202.57,19.75400308]
[1756493533200,6.15840907,202.63,202.58,6.85840907]
[1756493533409,6.15840907,202.64,202.59,0.7]
[1756493533711,6.15840907,202.64,202.6,0.7]
[1756493533928,6.15840907,202.64,202.62,4.93534695]
[1756493534209,6.21840907,202.65,202.62,4.93534695]
[1756493535006,0.06,202.65,202.63,0.7]
[1756493535625,0.06,202.65,202.62,4.93534695]
[1756493536000,6.21840907,202.65,202.61,18.53118455]
[1756493536196,6.21840907,202.65,202.61,19.23118455]
[1756493536720,6.21840907,202.65,202.56,4.93680884]
[1756493536721,6.15840907,202.62,202.56,4.93680884]
[1756493536923,6.15840907,202.57,202.56,4.93680884]
[1756493537306,6.15840907,202.58,202.56,4.93680884]
[1756493538011,6.15840907,202.57,202.52,4.93778392]
[1756493538208,6.15840907,202.56,202.53,0.7]
[1756493538707,6.15840907,202.56,202.54,0.7]
[1756493539219,6.15840907,202.56,202.55,4.93705257]
[1756493539421,6.15840907,202.56,202.52,19.23337793]
[1756493539422,9.84613178,202.56,202.52,19.23337793]
[1756493539624,9.84613178,202.56,202.53,0.7]
[1756493539836,9.84613178,202.55,202.52,18.53337793]
[1756493540027,9.84613178,202.55,202.52,19.23337793]
[1756493540201,9.84613178,202.56,202.53,0.7]
[1756493540404,9.84613178,202.55,202.53,0.7]
[1756493540819,9.84613178,202.55,202.54,0.7]
[1756493541023,9.84613178,202.56,202.52,5.63778392]
[1756493541234,9.84613178,202.56,202.54,4.93729633]
[1756493542629,9.84613178,202.56,202.54,5.63729633]
[1756493543016,9.84613178,202.56,202.54,4.93729633]
[1756493543216,9.84613178,202.56,202.54,5.63729633]
[1756493543417,9.84613178,202.57,202.54,5.63729633]
[1756493543737,9.84613178,202.57,202.54,4.93729633]
[1756493543902,9.84613178,202.57,202.54,5.63729633]
[1756493544213,9.84613178,202.57,202.53,0.03]
[1756493544414,9.84613178,202.56,202.53,0.03]
[1756493544614,9.84613178,202.56,202.53,0.73]
[1756493544824,9.84613178,202.56,202.53,0.03]
[1756493545025,9.84613178,202.56,202.54,0.7]
[1756493545912,9.84613178,202.57,202.54,0.7]
[1756493546736,9.84613178,202.57,202.55,4.93705257]
[1756493547533,9.84613178,202.58,202.55,4.93705257]
[1756493547723,9.84613178,202.58,202.55,0.7]
[1756493547931,9.84613178,202.58,202.53,19.26313412]
[1756493548120,9.84613178,202.58,202.54,0.7]
[1756493548841,9.84613178,202.57,202.54,0.7]
[1756493550539,9.84613178,202.57,202.55,4.93705257]
[1756493550759,26.06,202.65,202.56,13.59559401]
[1756493550909,9.84613178,202.64,202.58,13.59559401]
[1756493551102,9.84613178,202.64,202.59,10.51613178]
[1756493551510,9.84613178,202.64,202.6,0.67]
[1756493551911,0.06,202.65,202.61,10.51613178]
[1756493552118,0.06,202.65,202.6,13.59559401]
[1756493552119,0.06,202.65,202.63,9.84613178]
[1756493552517,0.06,202.65,202.63,10.51613178]
[1756493552750,0.06,202.65,202.64,14.78099162]
[1756493552925,0.06,202.65,202.64,5.60485984]
[1756493553250,0.06,202.65,202.64,15.45099162]
[1756493553540,0.06,202.65,202.64,29.04658563]
[1756493553725,0.06,202.65,202.64,68.78658563]
[1756493554927,0.06,202.65,202.64,58.92045385]
[1756493555234,0.06,202.65,202.64,68.76658563]
[1756493558445,0.06,202.65,202.64,68.70658563]
[1756493559343,0.06,202.65,202.64,65.00440497]
[1756493560553,0.06,202.65,202.64,144.60440497]
[1756493563859,0.06,202.65,202.64,144.58440497]
[1756493565857,0.06,202.65,202.64,98.80045385]
[1756493566039,0.06,202.65,202.64,138.44045385]
[1756493566243,0.06,202.65,202.64,144.58440497]
[1756493568638,1e-08,202.65,202.64,144.58440497]
[1756493569949,1e-08,202.65,202.64,98.80045385]
[1756493570151,1e-08,202.65,202.64,144.58440497]
[1756493572258,1e-08,202.68,202.67,39.59559401]
[1756493572566,1e-08,202.68,202.67,85.37954513]
[1756493572856,1e-08,202.68,202.67,86.04954513]
[1756493573047,1e-08,202.68,202.67,79.90559401]
[1756493573256,1e-08,202.68,202.67,86.04954513]
[1756493574075,1e-08,202.68,202.67,51.3436745]
[1756493574264,1e-08,202.68,202.67,90.9836745]
[1756493574741,1e-08,202.68,202.67,84.16972338]
[1756493574942,1e-08,202.68,202.67,90.3136745]
[1756493576251,1e-08,202.68,202.67,90.9836745]
[1756493577158,1e-08,202.68,202.67,90.9636745]
[1756493578170,1e-08,202.68,202.67,170.5636745]
[1756493578544,1e-08,202.68,202.67,130.9436745]
[1756493578872,1e-08,202.68,202.67,170.5636745]
[1756493580362,0.62000001,202.68,202.67,84.53412937]
[1756493580661,0.62000001,202.68,202.67,44.55412937]
[1756493580856,1e-08,202.68,202.67,50.69808049]
[1756493581589,1e-08,202.68,202.67,64.9636745]
[1756493582755,1e-08,202.68,202.67,90.9636745]
[1756493583370,1e-08,202.68,202.67,70.55412937]
[1756493583571,1e-08,202.68,202.67,44.55412937]
[1756493584080,1e-08,202.68,202.67,144.5636745]
[1756493584267,1e-08,202.68,202.67,143.8936745]
[1756493585050,1e-08,202.68,202.67,144.5636745]
[1756493590976,1e-08,202.68,202.67,143.8936745]
[1756493591584,1e-08,202.68,202.67,144.5636745]
[1756493592574,0.62000001,202.68,202.67,124.13412937]
[1756493592774,1e-08,202.68,202.67,124.13412937]
[1756493593564,1e-08,202.68,202.67,143.8736745]
[1756493594970,1e-08,202.68,202.67,104.2736745]
[1756493595170,1e-08,202.68,202.67,143.8736745]
[1756493595872,1e-08,202.68,202.67,144.5436745]
[1756493597582,1e-08,202.68,202.67,143.8736745]
[1756493597767,1e-08,202.68,202.67,144.5436745]
[1756493598287,1e-08,202.68,202.67,144.5736745]
[1756493600670,1e-08,202.73,202.71,19.73954513]
[1756493600985,1e-08,202.73,202.67,137.1694528]
[1756493600986,1e-08,202.73,202.72,59.33954513]
[1756493601294,0.62,202.79,202.75,26.0]
[1756493601478,5.47506959,202.88,202.74,26.0]
[1756493601479,0.62,202.81,202.76,59.33954513]
[1756493601662,0.62,202.81,202.76,53.19559401]
[1756493601863,0.62,202.81,202.76,59.33954513]
[1756493602565,0.62,202.81,202.76,64.27148436]
[1756493604294,0.62,202.81,202.76,58.12753324]
[1756493604461,0.62,202.81,202.76,64.27148436]
[1756493605068,6.14395112,202.83,202.76,24.67148436]
[1756493605290,0.68,202.77,202.76,70.51193923]
[1756493605496,0.06,202.77,202.76,76.65589035]
[1756493606068,0.06,202.77,202.76,37.07589035]
[1756493606393,0.06,202.77,202.76,76.65589035]
[1756493606965,0.06,202.77,202.76,30.93193923]
[1756493607177,0.68,202.77,202.76,30.93193923]
[1756493607362,6.82395112,202.77,202.75,39.58]
[1756493607584,0.62,202.76,202.72,6.14395112]
[1756493607789,0.62,202.75,202.73,39.58]
[1756493608284,0.68,202.77,202.73,39.58]
[1756493608480,0.62,202.76,202.74,4.93242576]
[1756493610088,0.06,202.77,202.75,45.72395112]
[1756493610293,0.06,202.77,202.76,6.14395112]
[1756493610483,0.06,202.77,202.76,39.58]
[1756493612194,0.06,202.77,202.76,44.51193923]
[1756493613296,0.06,202.77,202.76,51.34589035]
[1756493614367,0.06,202.77,202.76,4.93193923]
[1756493614601,6.82395112,202.77,202.75,4.9321718]
[1756493615093,0.62,202.76,202.75,4.9321718]
[1756493615282,6.76395112,202.76,202.74,39.56]
[1756493615487,0.06,202.77,202.72,39.56]
[1756493615792,6.76395112,202.76,202.72,39.56]
[1756493617207,6.76395112,202.76,202.74,0.03]
[1756493617577,6.14395112,202.76,202.74,0.03]
[1756493617785,6.82395112,202.77,202.74,0.03]
[1756493618291,6.20395112,202.77,202.74,0.03]
[1756493620984,6.1699707,202.77,202.74,0.03]
[1756493622296,0.02601958,202.77,202.74,0.72]
[1756493622491,0.02601958,202.77,202.74,6.86395112]
[1756493622690,0.02601958,202.77,202.75,0.69]
[1756493622872,0.02601958,202.77,202.75,46.39395112]
[1756493623078,0.02601958,202.77,202.75,45.70395112]
[1756493623289,0.02601958,202.77,202.76,0.69]
[1756493623899,0.02601958,202.77,202.75,40.25]
[1756493624103,0.02601958,202.77,202.76,4.93193923]
[1756493624800,0.02601958,202.77,202.76,11.76589035]
[1756493624999,0.02601958,202.77,202.76,25.36148436]
[1756493625505,1e-08,202.77,202.76,25.36148436]
[1756493626177,1e-08,202.8,202.79,39.59559401]
[1756493626375,1e-08,202.8,202.79,85.27954513]
[1756493626623,1e-08,202.8,202.79,85.96954513]
[1756493627703,1e-08,202.8,202.79,84.75680363]
[1756493627911,1e-08,202.8,202.79,90.90075475]
[1756493628420,1e-08,202.82,202.81,19.73954513]
[1756493628617,1e-08,202.82,202.81,59.27954513]
[1756493628917,1e-08,202.82,202.81,59.96954513]
[1756493629282,1e-08,202.82,202.81,53.82559401]
[1756493629477,1e-08,202.82,202.81,59.96954513]
[1756493629816,1e-08,202.82,202.81,64.90026846]
[1756493630194,1e-08,202.82,202.81,24.67026846]
[1756493630514,1e-08,202.82,202.81,64.90026846]
[1756493633181,1e-08,202.82,202.81,79.69910746]
[1756493637188,1e-08,202.85,202.84,39.59559401]
[1756493637388,1e-08,202.85,202.84,85.23954513]
[1756493637599,1e-08,202.85,202.84,85.92954513]
[1756493638310,1e-08,202.85,202.84,90.85953921]
[1756493638899,1e-08,202.85,202.84,4.92999408]
[1756493638900,0.62000001,202.85,202.84,4.92999408]
[1756493639301,1e-08,202.85,202.84,4.92999408]
[1756493639516,0.62000001,202.85,202.84,4.92999408]
[1756493640016,1e-08,202.85,202.84,4.92999408]
[1756493640591,1e-08,202.85,202.84,44.42999408]
[1756493640791,0.62000001,202.85,202.84,4.92999408]
[1756493641033,6.76395113,202.85,202.79,79.63]
[1756493641190,6.14395112,202.81,202.79,0.03]
[1756493641507,6.14395112,202.8,202.79,0.03]
[1756493641713,0.62,202.8,202.79,0.03]
[1756493641902,6.76395112,202.8,202.79,0.03]
[1756493643014,0.62,202.8,202.79,0.03]
[1756493643216,6.76395112,202.8,202.79,0.03]
[1756493645619,30.92976158,202.85,202.79,0.03]
[1756493645620,1e-08,202.85,202.79,0.03]
[1756493645820,6.14395112,202.83,202.79,0.03]
[1756493646002,6.76395112,202.83,202.79,0.03]
[1756493646317,6.14395112,202.83,202.79,0.03]
[1756493646511,1e-08,202.85,202.8,6.86395112]
[1756493646718,1e-08,202.85,202.81,6.86395112]
[1756493647416,1e-08,202.85,202.84,4.92999408]
[1756493647622,1e-08,202.85,202.82,0.72]
[1756493647623,1e-08,202.85,202.82,4.93026164]
[1756493648804,6.14395113,202.85,202.82,4.93026164]
[1756493649005,6.14395112,202.83,202.81,4.93066391]
[1756493649432,0.62000001,202.85,202.8,4.93096646]
[1756493649621,6.14395112,202.83,202.8,4.93096646]
[1756493649800,1e-08,202.85,202.8,5.65096646]
[1756493650002,6.14395112,202.84,202.8,4.93096646]
[1756493650604,6.76395112,202.84,202.8,4.93096646]
[1756493650805,6.14395112,202.83,202.8,4.93096646]
[1756493651424,6.76395112,202.84,202.8,4.93096646]
[1756493652235,1e-08,202.85,202.8,4.93096646]
[1756493652236,1e-08,202.85,202.81,6.86395112]
[1756493653029,6.76395113,202.85,202.8,23.40233375]
[1756493653224,6.14395112,202.84,202.8,17.97838263]
[1756493653531,6.14395113,202.85,202.82,4.93048022]
[1756493654513,1e-08,202.85,202.82,4.93048022]
[1756493655123,6.14395113,202.85,202.82,4.93048022]
[1756493655434,1e-08,202.85,202.82,4.93048022]
[1756493655637,6.14395113,202.85,202.82,5.65048022]
[1756493655830,6.14395113,202.85,202.82,4.93048022]
[1756493656138,1e-08,202.85,202.83,0.72]
[1756493656427,1e-08,202.85,202.82,11.07443134]
[1756493656663,1e-08,202.85,202.84,0.72]
[1756493657202,1e-08,202.85,202.84,5.64999408]
[1756493657616,1e-08,202.85,202.84,19.24558809]
[1756493657821,1e-08,202.85,202.84,4.92999408]
[1756493659208,1e-08,202.85,202.84,0.72]
[1756493660236,6.76395113,202.85,202.83,4.93023714]
[1756493660436,6.14395113,202.85,202.83,4.93023714]
[1756493660616,1e-08,202.85,202.83,4.93023714]
[1756493661343,1e-08,202.85,202.84,0.72]
[1756493662230,1e-08,202.85,202.84,5.64999408]
[1756493662949,1e-08,202.85,202.84,11.7939452]
[1756493663118,1e-08,202.85,202.84,5.64999408]
[1756493663454,1e-08,202.85,202.84,11.7939452]
[1756493663934,1e-08,202.85,202.84,64.84953921]
[1756493665021,1e-08,202.85,202.84,19.24558809]
[1756493665332,6.76395113,202.85,202.79,0.03]
[1756493665627,6.14395112,202.8,202.79,0.03]
[1756493666432,1e-08,202.85,202.79,0.75]
[1756493666653,6.14395112,202.82,202.79,0.75]
[1756493667413,6.14395112,202.82,202.79,0.03]
[1756493667739,6.14395112,202.81,202.79,0.75]
[1756493668435,6.14395112,202.81,202.8,4.93096646]
[1756493669620,6.14395112,202.82,202.8,5.65096646]
[1756493670435,6.14395112,202.82,202.79,0.03]
[1756493670639,6.14395112,202.82,202.79,0.71]
[1756493670939,6.14395112,202.8,202.79,0.03]
[1756493671338,6.14395112,202.81,202.79,0.03]
[1756493671835,6.14395112,202.8,202.79,0.03]
[1756493673539,6.14395112,202.81,202.79,0.71]
[1756493674243,6.14395112,202.81,202.79,0.03]
[1756493675337,6.14395112,202.8,202.79,0.03]
[1756493677527,6.14395112,202.81,202.79,0.03]
[1756493679556,6.14395112,202.8,202.79,0.03]
[1756493682052,6.14395112,202.81,202.79,0.71]
[1756493682850,6.14395112,202.81,202.79,0.03]
[1756493683354,6.14395112,202.81,202.79,0.71]
[1756493684053,1e-08,202.85,202.8,0.68]
[1756493684251,6.14395112,202.83,202.8,0.68]
[1756493685146,6.14395112,202.82,202.81,4.93072333]
[1756493687360,6.14395112,202.82,202.79,5.64120962]
[1756493687547,6.14395112,202.81,202.8,0.68]
[1756493687942,6.14395112,202.81,202.79,4.96120962]
[1756493688131,6.14395112,202.82,202.8,0.68]
[1756493688837,1e-08,202.85,202.81,0.68]
[1756493689036,6.14395112,202.84,202.81,0.68]
[1756493689238,6.14395112,202.84,202.82,4.93048022]
[1756493689542,6.14395112,202.83,202.82,4.93048022]
[1756493689742,1e-08,202.85,202.82,5.61048022]
[1756493689930,6.14395112,202.84,202.82,5.61048022]
[1756493690130,6.14395112,202.84,202.82,4.93048022]
[1756493691670,6.14395112,202.84,202.81,4.93072333]
[1756493691970,6.14395112,202.84,202.82,0.68]
[1756493692165,1e-08,202.85,202.82,0.68]
[1756493692668,6.14395112,202.84,202.82,0.68]
[1756493693757,6.14395113,202.85,202.83,4.93023714]
[1756493694761,1e-08,202.85,202.83,4.93023714]
[1756493694955,1e-08,202.85,202.84,0.68]
[1756493695672,1e-08,202.85,202.84,5.60999408]
[1756493698559,1e-08,202.85,202.81,0.68]
[1756493698763,1e-08,202.85,202.81,6.82395112]
[1756493698968,1e-08,202.85,202.82,0.68]
[1756493699775,1e-08,202.85,202.83,4.93023714]
[1756493700071,1e-08,202.85,202.84,6.14395112]
[1756493700376,1e-08,202.85,202.84,0.68]
[1756493700671,1e-08,202.85,202.84,6.82395112]
[1756493700854,1e-08,202.85,202.84,20.41954513]
[1756493701956,1e-08,202.85,202.84,25.34953921]
[1756493702151,1e-08,202.85,202.84,19.20558809]
[1756493702359,1e-08,202.85,202.84,64.74953921]
[1756493702558,1e-08,202.85,202.84,30.92999408]
[1756493703273,1e-08,202.85,202.84,31.57999408]
[1756493703476,1e-08,202.85,202.84,37.7239452]
[1756493703673,1e-08,202.85,202.84,31.57999408]
[1756493703864,1e-08,202.85,202.84,37.7239452]
[1756493704192,1e-08,202.85,202.84,31.57999408]
[1756493705856,1e-08,202.85,202.84,37.7239452]
[1756493710877,1e-08,202.85,202.84,30.92999408]
[1756493711179,1e-08,202.85,202.84,37.7239452]
[1756493711787,1e-08,202.85,202.84,51.31953921]
[1756493711962,1e-08,202.85,202.84,90.67953921]
[1756493712784,1e-08,202.85,202.84,84.53558809]
[1756493713080,1e-08,202.85,202.84,30.92999408]
[1756493714985,1e-08,202.85,202.84,4.92999408]
[1756493716890,1e-08,202.85,202.83,11.07418826]
[1756493718296,1e-08,202.85,202.83,11.72418826]
[1756493719283,1e-08,202.85,202.84,6.14395112]
[1756493719598,1e-08,202.85,202.84,20.38954513]
[1756493719977,1e-08,202.85,202.84,25.31953921]
[1756493721702,1e-08,202.85,202.84,11.7239452]
[1756493721887,1e-08,202.85,202.84,11.0739452]
[1756493722195,1e-08,202.85,202.84,4.92999408]
[1756493723781,6.76395113,202.85,202.82,0.03]
[1756493723978,6.14395112,202.83,202.82,0.03]
[1756493724697,6.76395112,202.83,202.82,0.03]
[1756493725696,11.69418826,202.83,202.82,0.03]
[1756493725884,32.76395112,202.83,202.82,0.03]
[1756493726286,37.69418826,202.83,202.82,0.03]
[1756493727390,43.83813938,202.83,202.82,0.03]
[1756493728285,45.81535238,202.83,202.82,0.03]
[1756493729516,26.0,202.8,202.79,0.03]
[1756493729670,38.28790224,202.8,202.79,0.03]
[1756493729874,38.90790224,202.8,202.79,0.03]
[1756493730276,38.90790224,202.8,202.77,0.03]
[1756493730486,45.73954513,202.78,202.76,0.03]
[1756493730694,6.14395112,202.77,202.76,0.03]
[1756493730996,6.76395112,202.77,202.76,0.03]
[1756493731898,26.0,202.75,202.74,0.03]
[1756493732076,32.14395112,202.75,202.74,0.03]
[1756493732278,32.76395112,202.75,202.74,0.03]
[1756493732784,6.14395112,202.75,202.74,0.03]
[1756493732975,45.46395112,202.75,202.74,0.03]
[1756493734706,46.08395112,202.75,202.74,0.03]
[1756493735007,51.01613361,202.75,202.74,0.03]
[1756493736776,50.39613361,202.75,202.74,0.03]
[1756493738008,39.32,202.75,202.74,0.03]
[1756493738306,45.46395112,202.75,202.74,0.03]
[1756493739388,32.14395112,202.75,202.74,0.03]
[1756493739592,6.14395112,202.75,202.74,0.73]
[1756493740488,11.69613361,202.75,202.74,0.03]
[1756493741616,51.01613361,202.75,202.74,0.03]
[1756493741905,11.69613361,202.75,202.74,0.03]
[1756493742091,11.69613361,202.75,202.74,0.73]
[1756493742092,39.32,202.75,202.74,0.73]
[1756493742497,45.46395112,202.75,202.74,0.73]
[1756493742694,6.14395112,202.75,202.74,0.73]
[1756493743007,45.46395112,202.76,202.74,0.73]
[1756493743216,45.46395112,202.76,202.75,0.7]
[1756493744110,45.46395112,202.76,202.74,0.03]
[1756493744412,6.76395112,202.75,202.74,0.03]
[1756493746903,39.59559401,202.72,202.71,0.03]
[1756493747205,111.20349625,202.72,202.67,0.03]
[1756493747395,45.73954513,202.68,202.61,0.9]
[1756493747596,32.14395112,202.65,202.61,0.9]
[1756493747802,71.44395112,202.65,202.61,0.9]
[1756493748424,71.44395112,202.65,202.61,0.2]
[1756493748595,72.06395112,202.65,202.61,0.2]
[1756493748791,76.99856745,202.65,202.61,0.2]
[1756493749405,76.37856745,202.65,202.61,0.2]
[1756493749818,71.44395112,202.65,202.61,0.2]
[1756493749997,32.14395112,202.65,202.61,0.9]
[1756493750192,71.46395112,202.65,202.62,0.7]
[1756493750599,71.46395112,202.65,202.61,0.2]
[1756493750800,71.46395112,202.65,202.61,0.9]
[1756493752004,76.39856745,202.65,202.61,0.9]
[1756493752205,76.39856745,202.65,202.61,0.2]
[1756493752618,77.01856745,202.65,202.61,0.2]
[1756493753208,90.61416146,202.65,202.61,0.2]
[1756493753400,38.28790224,202.62,202.61,0.2]
[1756493753727,82.52324919,202.62,202.61,0.2]
[1756493753916,83.14324919,202.62,202.61,0.2]
[1756493754241,26.0,202.59,202.58,0.2]
[1756493754418,71.44395112,202.59,202.58,0.2]
[1756493754615,72.06395112,202.59,202.58,0.2]
[1756493754803,72.06395112,202.59,202.54,0.03]
[1756493755005,6.14395112,202.55,202.54,0.03]
[1756493755204,71.44395112,202.55,202.54,0.03]
[1756493755616,76.38100369,202.55,202.54,0.03]
[1756493756008,71.44395112,202.55,202.54,0.03]
[1756493756804,51.00100369,202.55,202.54,0.03]
[1756493757230,64.5965977,202.55,202.53,0.03]
[1756493757427,26.0,202.52,202.51,0.03]
[1756493757730,82.54568616,202.52,202.51,0.03]
[1756493758235,76.40173504,202.52,202.51,0.03]
[1756493758613,71.46395112,202.52,202.51,0.03]
[1756493758824,1.980051,202.54,202.51,0.73]
[1756493759003,6.14395112,202.52,202.51,0.73]
[1756493759533,6.14395112,202.52,202.51,0.03]
[1756493760033,6.14395112,202.52,202.51,0.73]
[1756493760407,39.32,202.53,202.51,0.73]
[1756493760733,6.14395112,202.52,202.51,0.73]
[1756493761109,45.46395112,202.52,202.51,0.03]
[1756493761335,39.32,202.52,202.51,0.03]
[1756493761631,45.46395112,202.52,202.51,0.03]
[1756493761804,45.46395112,202.52,202.51,0.71]
[1756493762435,39.32,202.52,202.51,0.71]
[1756493762633,45.46395112,202.52,202.51,0.71]
[1756493762845,39.32,202.52,202.51,0.71]
[1756493763146,45.46395112,202.52,202.51,0.71]
[1756493763711,32.91632267,202.57,202.51,0.71]
[1756493763910,6.14395112,202.53,202.51,0.71]
[1756493764215,45.46395112,202.52,202.51,0.71]
[1756493764406,6.14395112,202.53,202.51,4.96802775]
[1756493764606,6.14395112,202.56,202.51,4.96802775]
[1756493764920,39.32,202.55,202.52,0.68]
[1756493765428,6.14395112,202.54,202.51,4.96802775]
[1756493765726,45.46395112,202.55,202.53,0.68]
[1756493765907,39.32,202.55,202.54,0.68]
[1756493766104,39.32,202.55,202.51,4.96781855]
[1756493766105,50.40100491,202.55,202.51,0.03]